bitfinex/quotes_SOLUSD_20250704
["timestamp","ask_amount","ask_price","bid_price","bid_amount"]
[1751589079305,12.29204898,152.37,152.33,6.80680566]
[1751589080117,6.21114898,152.37,152.33,6.80680566]
[1751589080313,6.21114898,152.38,152.33,13.01795464]
[1751589081112,6.21114898,152.38,152.34,0.28432314]
[1751589081827,6.21114898,152.38,152.36,0.14216157]
[1751589083219,6.21114898,152.39,152.36,0.14216157]
[1751589084007,6.21114898,152.39,152.36,6.56333501]
[1751589084903,6.21114898,152.39,152.35,6.70599484]
[1751589085303,1.7203,152.4,152.35,6.70599484]
[1751589085304,0.2,152.4,152.35,12.91714382]
[1751589085519,6.41114898,152.4,152.35,12.91714382]
[1751589085712,6.41114898,152.4,152.35,6.70599484]
[1751589085910,6.41114898,152.4,152.35,12.91714382]
[1751589086236,6.21114898,152.39,152.35,12.91714382]
[1751589086751,6.21114898,152.39,152.35,6.70599484]
[1751589087025,6.21114898,152.39,152.35,12.91714382]
[1751589087234,6.21114898,152.39,152.35,6.70599484]
[1751589089817,3.9737934,152.39,152.35,6.70599484]
[1751589091333,3.9737934,152.38,152.35,6.70599484]
[1751589091833,3.9737934,152.36,152.34,0.14216157]
[1751589092022,3.9737934,152.35,152.34,0.14216157]
[1751589096850,6.56254755,152.38,152.34,0.14216157]
[1751589097029,3.9737934,152.36,152.35,0.14216157]
[1751589099651,3.9737934,152.37,152.35,0.14216157]
[1751589103737,3.9737934,152.37,152.35,6.56382593]
[1751589104433,3.9737934,152.38,152.35,6.56382593]
[1751589104758,3.9737934,152.37,152.34,6.70623072]
[1751589105126,0.2,152.39,152.34,10.68002412]
[1751589105331,0.2,152.39,152.36,0.14216157]
[1751589106550,4.1737934,152.39,152.36,0.14216157]
[1751589107350,4.1737934,152.39,152.36,6.70555652]
[1751589107741,4.1737934,152.39,152.36,0.14216157]
[1751589108343,4.1737934,152.39,152.36,6.7054605]
[1751589111851,0.2,152.39,152.36,6.7054605]
[1751589112163,4.1737934,152.39,152.36,6.7054605]
[1751589115262,3.9737934,152.38,152.36,0.14216157]
[1751589118160,0.2,152.39,152.36,0.14216157]
[1751589118346,3.9737934,152.38,152.36,0.14216157]
[1751589119650,3.9737934,152.38,152.34,6.6641909]
[1751589119852,3.9737934,152.38,152.35,0.14216157]
[1751589121873,0.2,152.39,152.35,6.7059042]
[1751589122075,3.9737934,152.38,152.35,6.7059042]
[1751589126475,0.2,152.39,152.35,6.7059042]
[1751589126770,3.9737934,152.38,152.35,6.7059042]
[1751589127867,0.2,152.38,152.35,6.7059042]
[1751589128166,4.1737934,152.38,152.35,6.7059042]
[1751589128965,4.1737934,152.38,152.36,1.7]
[1751589129771,0.2,152.38,152.36,1.7]
[1751589129957,4.1737934,152.38,152.36,1.7]
[1751589131056,4.1737934,152.38,152.35,6.7059042]
[1751589132265,0.2,152.38,152.35,6.7059042]
[1751589133376,0.2,152.38,152.37,0.14216157]
[1751589144274,10.7363826,152.38,152.34,0.24216157]
[1751589144465,3.9737934,152.35,152.34,0.1]
[1751589144668,8.3161892,152.38,152.34,0.1]
[1751589144858,1.7536,152.38,152.34,0.1]
[1751589145062,0.2,152.38,152.34,10.63802408]
[1751589145285,0.2,152.38,152.35,0.14216157]
[1751589145467,4.1737934,152.38,152.35,0.14216157]
[1751589147283,3.9737934,152.37,152.35,0.14216157]
[1751589149895,0.2,152.38,152.35,0.14216157]
[1751589150077,3.9737934,152.37,152.35,0.14216157]
[1751589154467,6.76258861,152.38,152.35,0.14216157]
[1751589154672,3.9737934,152.37,152.35,0.14216157]
[1751589154901,3.9737934,152.37,152.34,0.24216157]
[1751589156998,6.76278617,152.38,152.34,0.24216157]
[1751589157306,3.9737934,152.37,152.34,0.24216157]
[1751589157610,3.9737934,152.37,152.34,6.80639244]
[1751589158690,6.76255537,152.38,152.34,6.80639244]
[1751589158906,3.9737934,152.37,152.34,6.80639244]
[1751589161218,6.76255537,152.38,152.34,6.80639244]
[1751589161399,3.9737934,152.37,152.34,6.80639244]
[1751589162386,0.2,152.38,152.34,10.78018584]
[1751589163015,0.2,152.38,152.35,0.28432314]
[1751589163395,0.2,152.38,152.37,0.14216157]
[1751589166413,0.2,152.38,152.37,6.70513328]
[1751589169395,0.2,152.38,152.37,10.96324982]
[1751589171417,0.2,152.38,152.37,6.98945642]
[1751589187830,0.2,152.38,152.37,0.14216157]
[1751589188017,0.2,152.38,152.37,6.70513328]
[1751589189741,0.2,152.38,152.37,0.14216157]
[1751589191327,0.2,152.38,152.37,6.70513328]
[1751589197334,0.2,152.38,152.37,6.98945642]
[1751589197637,0.2,152.38,152.37,10.96324982]
[1751589199705,0.2,152.38,152.37,6.98945642]
[1751589199906,0.2,152.38,152.37,0.14216157]
[1751589200430,10.73647208,152.38,152.35,6.8]
[1751589200632,3.9737934,152.36,152.34,0.1]
[1751589200815,10.53762667,152.35,152.34,0.1]
[1751589201238,3.9737934,152.35,152.34,0.1]
[1751589203131,8.19942136,152.37,152.34,0.1]
[1751589203323,3.9737934,152.35,152.34,0.1]
[1751589203524,3.9737934,152.36,152.34,0.1]
[1751589204143,8.19942136,152.37,152.34,0.1]
[1751589204429,1.6363,152.37,152.34,0.1]
[1751589204632,5.6100934,152.37,152.34,6.80640665]
[1751589204837,5.6100934,152.37,152.34,6.66424508]
[1751589207738,5.6100934,152.37,152.34,0.1]
[1751589209640,1.6363,152.37,152.34,0.1]
[1751589209825,3.9737934,152.36,152.34,0.1]
[1751589211527,3.9737934,152.35,152.34,0.1]
[1751589214646,10.53762667,152.35,152.34,0.1]
[1751589215440,16.64582667,152.35,152.34,0.1]
[1751589217454,12.67203327,152.35,152.34,0.1]
[1751589217651,16.64582667,152.35,152.34,0.1]
[1751589225452,12.67203327,152.35,152.34,0.1]
[1751589225756,16.64582667,152.35,152.34,0.1]
[1751589228567,16.84582667,152.35,152.34,0.1]
[1751589230566,16.84582667,152.35,152.29,10.87342156]
[1751589230775,3.9737934,152.34,152.29,10.87342156]
[1751589231981,10.53810957,152.34,152.3,6.56574912]
[1751589232165,3.9737934,152.33,152.3,6.56574912]
[1751589236083,10.5384968,152.33,152.3,0.14216157]
[1751589236282,3.9737934,152.33,152.3,0.14216157]
[1751589236984,6.56444081,152.34,152.3,0.14216157]
[1751589237175,3.9737934,152.33,152.3,0.14216157]
[1751589237681,10.53823421,152.34,152.3,6.70809896]
[1751589238880,12.87218265,152.35,152.3,6.70809896]
[1751589239078,10.73777605,152.35,152.3,10.68189236]
[1751589239784,4.1737934,152.35,152.3,10.68189236]
[1751589239985,10.73767319,152.35,152.3,10.68189236]
[1751589240286,0.2,152.35,152.3,10.68189236]
[1751589240466,4.1737934,152.35,152.31,3.9737934]
[1751589240664,0.2,152.35,152.32,3.9737934]
[1751589240964,0.2,152.35,152.31,3.9737934]
[1751589241675,0.2,152.35,152.32,0.42648471]
[1751589241876,0.2,152.35,152.33,6.56469506]
[1751589242267,0.2,152.35,152.32,10.9653968]
[1751589242475,0.2,152.35,152.32,6.9916034]
[1751589242861,3.9737934,152.34,152.31,0.14216157]
[1751589243989,3.9737934,152.34,152.31,6.70757622]
[1751589244960,0.2,152.35,152.31,6.70757622]
[1751589245161,4.1737934,152.35,152.31,6.70757622]
[1751589245569,4.1737934,152.35,152.31,6.80757622]
[1751589246678,3.9737934,152.34,152.31,6.80757622]
[1751589248696,4.1737934,152.35,152.31,6.80757622]
[1751589251003,3.9737934,152.34,152.31,0.24216157]
[1751589252389,4.1737934,152.35,152.31,6.80768719]
[1751589255898,10.73762759,152.35,152.31,6.80768719]
[1751589256199,4.1737934,152.35,152.31,6.80768719]
[1751589257515,10.73765319,152.35,152.31,6.80768719]
[1751589258502,10.73765319,152.35,152.31,0.24216157]
[1751589261098,4.1737934,152.35,152.31,6.80766143]
[1751589261282,0.2,152.35,152.31,10.78145483]
[1751589261489,0.2,152.35,152.34,0.14216157]
[1751589261692,0.2,152.35,152.34,4.11595497]
[1751589262199,0.2,152.35,152.34,0.14216157]
[1751589264085,0.2,152.35,152.34,6.70642571]
[1751589268385,0.2,152.35,152.31,0.1]
[1751589268587,0.2,152.35,152.32,6.564817]
[1751589273720,4.1737934,152.35,152.32,6.564817]
[1751589277605,0.2,152.35,152.32,6.564817]
[1751589285115,0.2,152.35,152.33,0.14216157]
[1751589285431,0.2,152.35,152.34,4.11595497]
[1751589287231,0.2,152.35,152.34,10.68021911]
[1751589288122,0.2,152.35,152.34,10.96454225]
[1751589308252,0.2,152.35,152.34,12.66454225]
[1751589310339,1e-08,152.35,152.34,12.66454225]
[1751589310741,1e-08,152.35,152.34,8.69074885]
[1751589310941,1e-08,152.35,152.34,12.66454225]
[1751589312062,1e-08,152.35,152.34,10.96454225]
[1751589330472,1e-08,152.35,152.34,19.1440692]
[1751589332886,1e-08,152.35,152.34,10.96454225]
[1751589333260,1e-08,152.35,152.34,44.12454225]
[1751589334078,1e-08,152.35,152.34,131.82454225]
[1751589334279,0.2,152.38,152.34,148.23520261]
[1751589334482,0.2,152.38,152.37,30.40027811]
[1751589334775,0.2,152.38,152.37,63.56027811]
[1751589336984,0.2,152.38,152.37,70.12324982]
[1751589345189,1e-08,152.38,152.37,70.12324982]
[1751589364305,1e-08,152.38,152.37,70.22324982]
[1751589378413,1e-08,152.38,152.37,37.06324982]
[1751589378612,1e-08,152.38,152.37,76.98324982]
[1751589379922,1e-08,152.39,152.38,0.42648471]
[1751589380109,1e-08,152.39,152.38,4.40027811]
[1751589381722,1e-08,152.39,152.38,10.96281912]
[1751589391627,0.2,152.41,152.4,26.42648471]
[1751589391820,0.2,152.41,152.4,79.41545171]
[1751589393523,0.2,152.41,152.4,85.9771315]
[1751589393722,0.2,152.44,152.41,0.42648471]
[1751589393928,0.2,152.44,152.43,30.40027811]
[1751589394118,0.2,152.44,152.43,63.52027811]
[1751589394613,0.2,152.44,152.43,68.68900812]
[1751589395535,0.2,152.44,152.43,66.10687308]
[1751589395706,0.2,152.44,152.43,40.10687308]
[1751589395912,0.2,152.44,152.43,6.98687308]
[1751589398035,0.2,152.44,152.43,0.14216157]
[1751589401433,0.2,152.44,152.42,0.42648471]
[1751589402628,6.1632,152.43,152.42,0.14216157]
[1751589402929,6.1632,152.43,152.41,0.14216157]
[1751589405140,6.1632,152.43,152.41,6.7033479]
[1751589408241,0.2,152.44,152.43,0.14216157]
[1751589408442,0.2,152.44,152.43,4.40027811]
[1751589408943,0.2,152.44,152.43,10.96066648]
[1751589411051,0.2,152.44,152.43,12.26066648]
[1751589411540,0.2,152.44,152.43,8.28687308]
[1751589411849,0.2,152.44,152.43,1.44216157]
[1751589412057,0.2,152.44,152.43,1.3]
[1751589412427,0.2,152.44,152.42,6.56066558]
[1751589412665,4.1737934,152.44,152.41,0.42648471]
[1751589412855,3.9737934,152.42,152.4,6.76]
[1751589413052,3.9737934,152.41,152.4,6.76]
[1751589413347,3.9737934,152.42,152.4,6.76]
[1751589417859,6.3157,152.43,152.4,6.76]
[1751589418356,3.9737934,152.42,152.4,6.76]
[1751589420763,6.3157,152.43,152.4,6.76]
[1751589420764,10.2894934,152.43,152.4,6.76]
[1751589424757,10.2894934,152.43,152.4,13.32164824]
[1751589425267,10.2894934,152.43,152.4,6.76]
[1751589428069,3.9737934,152.42,152.4,6.76]
[1751589430467,16.8500492,152.43,152.4,6.86]
[1751589430669,17.0500492,152.43,152.4,6.86]
[1751589433958,10.4894934,152.43,152.4,6.86]
[1751589434162,17.04992085,152.43,152.4,6.86]
[1751589434366,3.9737934,152.42,152.4,6.86]
[1751589436877,10.4894934,152.43,152.4,6.86]
[1751589439075,6.5157,152.43,152.4,13.42167554]
[1751589441873,10.4894934,152.43,152.4,13.42167554]
[1751589443084,10.4894934,152.43,152.4,6.86]
[1751589443377,10.4894934,152.43,152.4,0.1]
[1751589447165,6.5157,152.43,152.4,6.66160193]
[1751589447582,0.2,152.43,152.4,6.66160193]
[1751589452889,0.2,152.43,152.4,0.1]
[1751589453083,0.2,152.43,152.42,3.9737934]
[1751589453279,0.2,152.43,152.42,4.11595497]
[1751589453605,0.2,152.43,152.42,30.40027811]
[1751589453971,0.2,152.43,152.42,36.9610969]
[1751589459503,0.2,152.44,152.43,0.42648471]
[1751589459798,0.2,152.44,152.43,11.16027811]
[1751589461482,1e-08,152.44,152.43,17.72066648]
[1751589461992,0.2,152.45,152.43,17.72066648]
[1751589461993,1e-08,152.45,152.43,17.72066648]
[1751589462194,1e-08,152.45,152.44,37.50027811]
[1751589463710,1e-08,152.45,152.44,44.06023612]
[1751589465515,1e-08,152.45,152.44,40.08644272]
[1751589465694,1e-08,152.45,152.44,70.06023612]
[1751589465889,1e-08,152.45,152.44,69.63375141]
[1751589466295,1e-08,152.45,152.44,70.06023612]
[1751589466900,1e-08,152.45,152.44,36.96023612]
[1751589478016,1e-08,152.45,152.44,0.42648471]
[1751589478199,1e-08,152.45,152.44,4.40027811]
[1751589478515,1e-08,152.45,152.44,0.14216157]
[1751589478716,1e-08,152.45,152.43,6.76]
[1751589478903,3.9737934,152.44,152.43,6.76]
[1751589479107,10.1499934,152.44,152.43,6.76]
[1751589479705,10.1499934,152.44,152.4,0.1]
[1751589479910,3.9737934,152.43,152.4,0.24216157]
[1751589481099,16.71017115,152.44,152.4,6.80380599]
[1751589481825,18.94176687,152.44,152.4,6.80380599]
[1751589482824,18.94176687,152.44,152.43,0.1]
[1751589501447,19.14176687,152.44,152.43,0.1]
[1751589501742,16.90789271,152.44,152.43,0.1]
[1751589505848,12.93637775,152.44,152.43,0.1]
[1751589506140,16.90789271,152.44,152.43,0.1]
[1751589507019,10.73169271,152.44,152.43,0.1]
[1751589512948,18.98079271,152.44,152.43,0.1]
[1751589518153,26.0,152.41,152.4,0.1]
[1751589518330,54.0394748,152.41,152.4,1e-08]
[1751589518639,38.15341496,152.41,152.4,1e-08]
[1751589520052,44.71466422,152.41,152.4,1e-08]
[1751589521454,38.08136422,152.41,152.4,1e-08]
[1751589525853,12.08136422,152.41,152.4,1e-08]
[1751589530165,10.53276422,152.41,152.4,1e-08]
[1751589534274,10.73276422,152.41,152.4,1e-08]
[1751589539459,26.61882406,152.41,152.4,1e-08]
[1751589540260,54.17672406,152.41,152.4,1e-08]
[1751589540460,26.0,152.39,152.38,0.1]
[1751589540749,29.97151496,152.39,152.38,0.1]
[1751589542574,36.53362533,152.39,152.38,0.1]
[1751589544970,32.56211037,152.39,152.38,0.1]
[1751589545266,36.53362533,152.39,152.38,0.1]
[1751589583830,6.56211037,152.39,152.38,0.1]
[1751589584933,10.53362533,152.39,152.38,0.1]
[1751589589431,10.73329686,152.4,152.38,0.1]
[1751589589614,6.7617819,152.4,152.38,0.1]
[1751589589815,10.73329686,152.4,152.38,0.1]
[1751589590015,4.17151496,152.4,152.38,0.1]
[1751589590726,0.2,152.4,152.38,0.1]
[1751589591433,4.17151496,152.4,152.38,0.1]
[1751589592533,0.2,152.4,152.38,0.1]
[1751589592707,4.17151496,152.4,152.38,0.1]
[1751589595357,0.2,152.4,152.38,0.1]
[1751589596536,0.2,152.4,152.38,4.07151496]
[1751589596718,0.2,152.4,152.38,10.63390925]
[1751589596907,0.2,152.4,152.39,3.97151496]
[1751589597842,0.2,152.4,152.38,10.63390925]
[1751589599626,0.2,152.4,152.38,6.66239429]
[1751589599833,0.2,152.4,152.38,10.63390925]
[1751589608655,0.2,152.4,152.39,4.39799967]
[1751589608838,0.2,152.4,152.39,20.28405951]
[1751589609153,0.2,152.41,152.4,26.42648471]
[1751589609359,0.2,152.41,152.4,46.28405951]
[1751589611365,0.2,152.41,152.4,52.8457393]
[1751589611657,0.2,152.41,152.4,57.99797592]
[1751589612957,0.2,152.41,152.4,52.8457393]
[1751589614260,0.2,152.41,152.4,58.05007858]
[1751589614648,0.2,152.44,152.41,0.14216157]
[1751589614841,0.2,152.44,152.43,4.2558381]
[1751589615243,0.2,152.44,152.43,10.81622647]
[1751589615761,0.2,152.44,152.43,36.81622647]
[1751589616562,0.2,152.44,152.43,36.95838804]
[1751589621072,0.2,152.44,152.43,32.98687308]
[1751589621242,0.2,152.44,152.43,36.95838804]
[1751589624267,0.2,152.44,152.43,32.98687308]
[1751589624569,0.2,152.44,152.43,36.95838804]
[1751589630258,0.2,152.44,152.43,10.95838804]
[1751589636277,1e-08,152.45,152.43,10.95838804]
[1751589636578,1e-08,152.45,152.44,44.01795768]
[1751589637484,1e-08,152.45,152.44,40.04644272]
[1751589637869,1e-08,152.45,152.44,44.01795768]
[1751589661601,1e-08,152.45,152.44,50.75795768]
[1751589664008,0.2,152.48,152.46,26.0]
[1751589664177,0.2,152.48,152.46,63.45799967]
[1751589665386,0.2,152.5,152.47,0.42648471]
[1751589665589,0.2,152.5,152.49,4.39799967]
[1751589667110,0.2,152.5,152.49,0.42648471]
[1751589667311,0.2,152.5,152.49,10.95580673]
[1751589668515,0.2,152.5,152.49,36.95580673]
[1751589670116,0.2,152.52,152.49,36.95580673]
[1751589670117,1e-08,152.51,152.5,26.42648471]
[1751589670292,0.2,152.54,152.53,0.42648471]
[1751589670618,0.2,152.54,152.53,44.19799967]
[1751589671904,0.2,152.54,152.53,50.75408699]
[1751589672104,4.90992319,152.6,152.57,0.42648471]
[1751589672303,1.6385,152.61,152.6,0.42648471]
[1751589672604,1.6385,152.61,152.6,4.39799967]
[1751589672800,1.6385,152.61,152.6,11.13799967]
[1751589673025,6.7608,152.62,152.6,44.19799967]
[1751589673308,0.2,152.62,152.61,4.39799967]
[1751589674016,0.2,152.62,152.61,10.95065021]
[1751589674390,0.2,152.62,152.61,36.95065021]
[1751589674592,0.2,152.62,152.61,16.29976012]
[1751589675895,0.2,152.62,152.61,18.51265875]
[1751589676309,0.2,152.62,152.61,13.16354884]
[1751589678513,0.2,152.62,152.61,13.29265054]
[1751589678692,0.2,152.62,152.61,52.53706413]
[1751589678892,0.2,152.62,152.61,19.90354884]
[1751589685438,8.1234,152.69,152.65,0.42648471]
[1751589685622,8.1234,152.69,152.66,6.18441359]
[1751589686320,8.1234,152.69,152.67,6.18441359]
[1751589686516,8.1234,152.69,152.67,12.73436738]
[1751589688734,8.1234,152.69,152.68,6.97613102]
[1751589688914,8.1234,152.69,152.68,13.16054461]
[1751589689227,0.1,152.69,152.68,13.16054461]
[1751589690809,0.1,152.69,152.68,6.97613102]
[1751589691135,0.1,152.69,152.68,13.16054461]
[1751589692631,0.1,152.69,152.68,19.92054461]
[1751589699741,0.1,152.69,152.68,4.68648471]
[1751589700724,20.53533095,152.69,152.62,6.74]
[1751589700921,6.18441359,152.64,152.62,6.74]
[1751589701323,6.18441359,152.65,152.62,6.74]
[1751589701939,6.18441359,152.65,152.62,13.29221661]
[1751589702138,6.18441359,152.65,152.63,0.14216157]
[1751589702552,6.18441359,152.65,152.62,13.29221661]
[1751589702553,6.1654,152.66,152.58,3.35822073]
[1751589702728,0.1,152.69,152.64,6.74]
[1751589703046,0.1,152.69,152.68,0.42648471]
[1751589703248,0.1,152.69,152.66,6.74]
[1751589708228,0.1,152.69,152.66,13.29050338]
[1751589709352,0.1,152.69,152.66,6.74]
[1751589711552,12.8337055,152.69,152.66,6.74]
[1751589712525,6.18441359,152.68,152.66,6.74]
[1751589713052,12.73406605,152.68,152.66,6.74]
[1751589713252,6.18441359,152.67,152.66,6.74]
[1751589714540,6.18441359,152.68,152.66,6.74]
[1751589715042,12.83379681,152.69,152.66,6.74]
[1751589715539,6.28441359,152.69,152.66,6.74]
[1751589719962,0.1,152.69,152.66,13.29049914]
[1751589720956,6.28441359,152.69,152.66,6.74]
[1751589724967,12.83363859,152.69,152.66,6.74]
[1751589725162,6.18441359,152.68,152.66,6.74]
[1751589726064,6.18441359,152.67,152.66,6.74]
[1751589727039,6.18441359,152.68,152.66,6.74]
[1751589727242,6.28441359,152.69,152.66,13.29035907]
[1751589727446,0.1,152.69,152.66,13.29035907]
[1751589728059,6.28441359,152.69,152.66,13.29035907]
[1751589730070,0.1,152.69,152.66,13.29035907]
[1751589731268,0.1,152.69,152.67,6.18441359]
[1751589732267,0.1,152.69,152.68,6.32657516]
[1751589733238,0.1,152.69,152.68,12.87622147]
[1751589734161,0.1,152.69,152.68,13.16054461]
[1751589736487,0.1,152.69,152.68,39.16054461]
[1751589737548,0.1,152.69,152.68,45.27647674]
[1751589737950,0.1,152.69,152.68,39.16054461]
[1751589738378,0.1,152.69,152.68,45.27647674]
[1751589740458,0.1,152.69,152.68,39.16054461]
[1751589741870,0.1,152.69,152.68,72.54054461]
[1751589742496,0.1,152.69,152.68,78.64780367]
[1751589746585,1e-08,152.69,152.68,52.64780367]
[1751589746760,1e-08,152.69,152.68,48.11624461]
[1751589747779,1e-08,152.69,152.68,49.99554465]
[1751589747962,6.28441359,152.76,152.71,26.0]
[1751589748163,0.1,152.76,152.73,0.14216157]
[1751589748373,6.28441359,152.76,152.73,0.14216157]
[1751589748568,0.1,152.76,152.73,0.14216157]
[1751589748758,6.28441359,152.76,152.73,6.68938342]
[1751589749790,0.1,152.76,152.73,6.68938342]
[1751589749958,6.28441359,152.76,152.73,6.68938342]
[1751589751890,6.28441359,152.76,152.75,0.14216157]
[1751589751891,0.1,152.76,152.75,0.14216157]
[1751589752273,0.1,152.76,152.75,6.32657516]
[1751589753279,0.1,152.76,152.75,12.87322]
[1751589754969,0.1,152.76,152.75,13.15754314]
[1751589755789,0.1,152.76,152.75,46.49754314]
[1751589756275,0.1,152.76,152.75,40.31312955]
[1751589756587,0.1,152.76,152.75,46.49754314]
[1751589756982,1e-08,152.76,152.75,46.49754314]
[1751589763484,2.5,152.82,152.79,0.28432314]
[1751589763803,2.5,152.82,152.81,0.14216157]
[1751589764393,2.5,152.82,152.81,6.68623591]
[1751589765485,2.5,152.82,152.81,12.8706495]
[1751589767195,2.5,152.82,152.81,0.14216157]
[1751589767586,2.5,152.82,152.81,6.68623591]
[1751589768896,2.5,152.82,152.81,0.14216157]
[1751589769503,2.5,152.82,152.8,6.88]
[1751589769813,2.5,152.82,152.8,40.16]
[1751589770492,8.68441359,152.82,152.8,6.88]
[1751589771178,2.5,152.82,152.8,6.88]
[1751589771686,7.69691359,152.81,152.8,6.88]
[1751589773525,14.24098793,152.81,152.8,6.88]
[1751589774386,2.5,152.82,152.8,6.88]
[1751589774594,2.5,152.82,152.8,19.60889558]
[1751589775562,2.5,152.82,152.8,13.42448199]
[1751589776201,8.68441359,152.82,152.8,6.88]
[1751589776586,9.04372213,152.82,152.77,78.91004211]
[1751589776788,6.18441359,152.81,152.77,78.91004211]
[1751589777011,6.18441359,152.81,152.77,45.61004211]
[1751589779401,15.22813572,152.82,152.77,45.61004211]
[1751589780019,15.22813572,152.82,152.77,39.42562852]
[1751589780213,15.22813572,152.82,152.77,45.61004211]
[1751589780406,6.18441359,152.81,152.77,45.61004211]
[1751589780622,8.68441359,152.82,152.78,6.18441359]
[1751589781497,2.5,152.82,152.79,33.44216157]
[1751589781821,2.5,152.82,152.79,39.62657516]
[1751589782018,2.5,152.82,152.79,33.3]
[1751589783710,8.68441359,152.82,152.79,33.3]
[1751589784319,8.68441359,152.82,152.78,6.5450101]
[1751589784518,8.68441359,152.82,152.78,46.7050101]
[1751589785122,6.18441359,152.8,152.75,26.2]
[1751589785423,6.18441359,152.8,152.77,40.16]
[1751589785610,6.18441359,152.8,152.77,6.86]
[1751589785928,6.18441359,152.79,152.77,6.86]
[1751589786423,12.20461359,152.8,152.77,6.86]
[1751589786798,6.0202,152.8,152.77,13.40556423]
[1751589787216,12.20461359,152.8,152.77,13.40556423]
[1751589788038,6.0202,152.8,152.77,13.40556423]
[1751589788212,6.18441359,152.81,152.77,13.40556423]
[1751589789023,6.18441359,152.81,152.75,33.5]
[1751589789024,6.6382,152.77,152.75,0.2]
[1751589789327,6.18441359,152.76,152.75,0.2]
[1751589789807,19.17792391,152.76,152.75,0.2]
[1751589790007,19.17792391,152.76,152.69,0.2]
[1751589790008,7.81881359,152.76,152.69,0.2]
[1751589790220,6.18441359,152.7,152.69,0.2]
[1751589790407,12.99351032,152.76,152.69,0.2]
[1751589790612,6.18441359,152.71,152.69,0.2]
[1751589790822,6.18441359,152.7,152.69,0.2]
[1751589793720,12.73320206,152.7,152.69,0.2]
[1751589798450,6.54878847,152.7,152.69,0.2]
[1751589798617,12.73320206,152.7,152.69,0.2]
[1751589802622,6.54633421,152.76,152.7,0.14216157]
[1751589802823,6.54633421,152.76,152.71,6.18441359]
[1751589802824,6.28441359,152.75,152.71,6.18441359]
[1751589803031,6.28441359,152.75,152.7,6.32657516]
[1751589803738,12.83122738,152.75,152.7,6.18441359]
[1751589804041,12.83122738,152.75,152.71,0.14216157]
[1751589805137,6.18441359,152.74,152.71,0.14216157]
[1751589807650,0.1,152.75,152.71,6.69051948]
[1751589807827,6.28441359,152.75,152.71,12.87493307]
[1751589809347,12.83108417,152.75,152.71,0.14216157]
[1751589810147,12.83108124,152.75,152.71,0.14216157]
[1751589810352,6.18441359,152.73,152.69,0.34216157]
[1751589810732,6.18441359,152.73,152.69,6.89135818]
[1751589811046,6.18441359,152.72,152.69,0.34216157]
[1751589813345,12.73198046,152.73,152.69,0.34216157]
[1751589819756,12.73198046,152.73,152.69,6.89133859]
[1751589820052,12.73198046,152.73,152.69,0.34216157]
[1751589822342,6.54756687,152.73,152.69,6.89131618]
[1751589822558,6.18441359,152.73,152.69,6.89131618]
[1751589823656,6.64678829,152.75,152.7,6.18441359]
[1751589824045,12.83120188,152.75,152.7,6.18441359]
[1751589824751,12.83120188,152.75,152.7,12.73279761]
[1751589824956,0.1,152.75,152.71,6.32657516]
[1751589825347,12.83109024,152.75,152.71,6.32657516]
[1751589826259,12.83109024,152.75,152.71,0.14216157]
[1751589828161,0.1,152.75,152.71,6.69041827]
[1751589828358,6.28441359,152.75,152.71,6.69041827]
[1751589832782,12.83106134,152.75,152.71,6.69041827]
[1751589836169,6.28441359,152.75,152.71,6.69041827]
[1751589837679,0.1,152.75,152.71,6.69041827]
[1751589837858,0.1,152.75,152.71,12.87483186]
[1751589838256,12.83109257,152.75,152.71,6.69041827]
[1751589838462,0.1,152.75,152.72,6.18441359]
[1751589839656,0.1,152.75,152.72,12.73200061]
[1751589840065,0.1,152.75,152.73,6.32657516]
[1751589840259,0.1,152.75,152.73,0.14216157]
[1751589841685,6.18441359,152.74,152.7,6.54878847]
[1751589841889,6.18441359,152.74,152.71,0.14216157]
[1751589842459,6.18441359,152.73,152.71,0.14216157]
[1751589842662,6.18441359,152.73,152.69,0.2]